fUST/lending_fUST_20251004
["ID","MTS","AMOUNT","RATE_DAILY","PERIOD"]
[389115939,1759582267160,-657.33,0.00020273,2]
[389115941,1759582267172,-500.0,0.00020273,2]
[389115944,1759582267185,-151.0,0.00020273,2]
[389115946,1759582267197,-500.0,0.00020273,2]
[389115948,1759582267210,-151.0,0.00020273,2]
[389115951,1759582267222,-151.0,0.00020273,2]
[389115953,1759582267235,-500.0,0.00020273,2]
[389115955,1759582267248,-500.0,0.00020273,2]
[389115958,1759582267260,-793.93,0.00020273,2]
[389115960,1759582267273,-377.804729,0.00020273,2]
[389115962,1759582267284,-377.804729,0.00020273,2]
[389115965,1759582267297,-500.0,0.00020273,2]
[389115967,1759582267310,-377.804729,0.00020273,2]
[389115970,1759582267322,-2432.08,0.00020273,2]
[389115972,1759582267334,-500.0,0.00020273,2]
[389115974,1759582267348,-421.910071,0.00020273,2]
[389115977,1759582267361,-500.0,0.00020273,2]
[389115979,1759582267373,-421.910071,0.00020273,2]
[389115981,1759582267385,-151.0,0.00020273,2]
[389115984,1759582267397,-421.910071,0.00020273,2]
[389115986,1759582267410,-151.0,0.00020273,2]
[389115988,1759582267423,-377.804729,0.00020273,2]
[389115991,1759582267434,-421.910071,0.00020273,2]
[389115993,1759582267448,-744.57,0.00020273,2]
[389115996,1759582267460,-151.0,0.00020273,2]
[389115998,1759582267472,-500.0,0.00020273,2]
[389116000,1759582267486,-500.0,0.00020273,2]
[389116003,1759582267498,-500.0,0.00020273,2]
[389116005,1759582267511,-151.0,0.00020273,2]
[389116007,1759582267523,-500.0,0.00020273,2]
[389116010,1759582267535,-151.0,0.00020273,2]
[389116012,1759582267547,-151.0,0.00020273,2]
[389116014,1759582267559,-151.0,0.00020273,2]
[389116016,1759582267571,-174.97404,0.00020273,2]
[389116019,1759582267583,-394.85253813,0.00020273,2]
[389116021,1759582267594,-151.0,0.00020273,2]
[389116023,1759582267607,-500.0,0.00020273,2]
[389116025,1759582267620,-1100.8,0.00020273,2]
[389116028,1759582267634,-151.0,0.00020273,2]
[389116030,1759582267647,-151.0,0.00020273,2]
[389116033,1759582267660,-500.0,0.00020273,2]
[389116035,1759582267672,-500.0,0.00020273,2]
[389116037,1759582267685,-500.0,0.00020273,2]
[389116039,1759582267699,-151.0,0.00020273,2]
[389116042,1759582267714,-1468.58,0.00020273,2]
[389116044,1759582267727,-500.0,0.00020273,2]
[389116046,1759582267739,-500.0,0.00020273,2]
[389116049,1759582267753,-151.0,0.00020273,2]
[389116051,1759582267766,-500.0,0.00020273,2]
[389116054,1759582267779,-500.0,0.00020273,2]
[389116056,1759582267792,-500.0,0.00020273,2]
[389116058,1759582267805,-500.0,0.00020273,2]
[389116060,1759582267817,-1277.48,0.00020273,2]
[389116063,1759582267829,-500.0,0.00020273,2]
[389116065,1759582267842,-785.41,0.00020273,2]
[389116067,1759582267851,-751.7,0.00020273,2]
[389116069,1759582267860,-500.0,0.00020273,2]
[389116071,1759582267869,-500.0,0.00020273,2]
[389116073,1759582267878,-692.47,0.00020273,2]
[389116098,1759582268051,-151.0,0.00020273,2]
[389116103,1759582268135,-500.0,0.00020273,2]
[389116105,1759582268149,-500.0,0.00020273,2]
[389116107,1759582268159,-500.0,0.00020273,2]
[389116109,1759582268168,-151.0,0.00020273,2]
[389116111,1759582268178,-558.308136,0.00020273,2]
[389116113,1759582268187,-500.0,0.00020273,2]
[389116115,1759582268197,-243.704133,0.00020273,2]
[389116117,1759582268207,-500.0,0.00020273,2]
[389116119,1759582268216,-558.308136,0.00020273,2]
[389116121,1759582268225,-151.0,0.00020273,2]
[389116123,1759582268236,-558.308136,0.00020273,2]
[389116125,1759582268245,-500.0,0.00020273,2]
[389116127,1759582268255,-558.308136,0.00020273,2]
[389116129,1759582268264,-151.0,0.00020273,2]
[389116131,1759582268273,-1597.27,0.00020273,2]
[389116133,1759582268282,-549.33,0.00020273,2]
[389116135,1759582268292,-151.0,0.00020273,2]
[389116137,1759582268300,-156.21857,0.00020273,2]
[389116139,1759582268309,-500.0,0.00020273,2]
[389116141,1759582268318,-500.0,0.00020273,2]
[389116143,1759582268327,-151.0,0.00020273,2]
[389116145,1759582268336,-1444.29,0.00020273,2]
[389116147,1759582268345,-762.96,0.00020273,2]
[389116149,1759582268354,-3987.82,0.00020273,2]
[389116151,1759582268363,-500.0,0.00020273,2]
[389116153,1759582268373,-2704.0,0.00020273,2]
[389116155,1759582268382,-210.206214,0.00020273,2]
[389116157,1759582268391,-210.206214,0.00020273,2]
[389116159,1759582268401,-899.46,0.00020273,2]
[389116161,1759582268410,-210.206214,0.00020273,2]
[389116163,1759582268419,-500.0,0.00020273,2]
[389116165,1759582268428,-152.196652,0.00020273,2]
[389116167,1759582268437,-210.206214,0.00020273,2]
[389116168,1759582268446,-500.0,0.00020273,2]
[389116169,1759582268455,-1061.231118,0.00020273,2]
[389116170,1759582268464,-1061.231118,0.00020273,2]
[389116171,1759582268474,-500.0,0.00020273,2]
[389116172,1759582268483,-1061.231118,0.00020273,2]
[389116173,1759582268493,-232.342074,0.00020273,2]
[389116174,1759582268503,-1061.231118,0.00020273,2]
[389116175,1759582268512,-889.58,0.00020273,2]
[389116177,1759582268522,-232.342074,0.00020273,2]
[389116179,1759582268532,-500.0,0.00020273,2]
[389116181,1759582268541,-605.37579285,0.00020273,2]
[389116183,1759582268551,-970.24,0.00020273,2]
[389116186,1759582268561,-232.342074,0.00020273,2]
[389116188,1759582268571,-890.79,0.00020273,2]
[389116189,1759582268581,-500.0,0.00020273,2]
[389116192,1759582268590,-560.22,0.00020273,2]
[389116193,1759582268600,-232.342074,0.00020273,2]
[389116195,1759582268609,-509.79,0.00020273,2]
[389116197,1759582268619,-850.99,0.00020273,2]
[389116199,1759582268628,-1111.72,0.00020273,2]
[389116201,1759582268637,-752.66,0.00020273,2]
[389116203,1759582268646,-633.91,0.00020273,2]
[389116205,1759582268656,-1046.13,0.00020273,2]
[389116207,1759582268666,-2794.99,0.00020273,2]
[389116209,1759582268675,-500.0,0.00020273,2]
[389116212,1759582268686,-1659.91,0.00020273,2]
[389116213,1759582268696,-500.0,0.00020273,2]
[389116216,1759582268706,-991.41,0.00020273,2]
[389116217,1759582268721,-500.0,0.00020273,2]
[389116220,1759582268732,-863.73,0.00020273,2]
[389116221,1759582268741,-580.2,0.00020273,2]
[389116223,1759582268751,-500.0,0.00020273,2]
[389116225,1759582268761,-500.0,0.00020273,2]
[389116227,1759582268771,-151.0,0.00020273,2]
[389116229,1759582268781,-500.0,0.00020273,2]
[389116231,1759582268791,-153.41722808,0.00020273,2]
[389116233,1759582268801,-363.85018703,0.00020273,2]
[389116235,1759582268810,-1170.5,0.00020273,2]
[389116237,1759582268819,-190.96123,0.00020273,2]
[389116239,1759582268828,-959.77,0.00020273,2]
[389116241,1759582268837,-190.96123,0.00020273,2]
[389116243,1759582268846,-151.0,0.00020273,2]
[389116245,1759582268855,-190.96123,0.00020273,2]
[389116247,1759582268865,-966.58,0.00020273,2]
[389116249,1759582268874,-500.0,0.00020273,2]
[389116251,1759582268883,-179.749958,0.00020273,2]
[389116253,1759582268892,-190.96123,0.00020273,2]
[389116255,1759582268901,-179.749958,0.00020273,2]
[389116257,1759582268911,-500.0,0.00020273,2]
[389116259,1759582268920,-500.0,0.00020273,2]
[389116261,1759582268930,-500.0,0.00020273,2]
[389116263,1759582268940,-179.749958,0.00020273,2]
[389116265,1759582268949,-179.749958,0.00020273,2]
[389116268,1759582268958,-654.0,0.00020273,2]
[389116270,1759582268968,-2612.01,0.00020273,2]
[389116272,1759582268978,-500.0,0.00020273,2]
[389116274,1759582268988,-500.0,0.00020273,2]
[389116275,1759582268997,-810.31,0.00020273,2]
[389116277,1759582269006,-438.93159,0.00020273,2]
[389116279,1759582269015,-438.93159,0.00020273,2]
[389116281,1759582269024,-438.93159,0.00020273,2]
[389116283,1759582269034,-500.0,0.00020273,2]
[389116285,1759582269043,-696.23,0.00020273,2]
[389116287,1759582269052,-438.93159,0.00020273,2]
[389116289,1759582269061,-500.0,0.00020273,2]
[389116291,1759582269071,-500.0,0.00020273,2]
[389116293,1759582269080,-500.0,0.00020273,2]
[389116295,1759582269090,-500.0,0.00020273,2]
[389116297,1759582269099,-151.0,0.00020273,2]
[389116299,1759582269108,-151.0,0.00020273,2]
[389116301,1759582269117,-294.14978,0.00020273,2]
[389116303,1759582269126,-612.81,0.00020273,2]
[389116305,1759582269136,-1207.67,0.00020273,2]
[389116307,1759582269145,-500.0,0.00020273,2]
[389116309,1759582269154,-435.065684,0.00020273,2]
[389116311,1759582269164,-435.065684,0.00020273,2]
[389116313,1759582269173,-283.22526745,0.00020273,2]
[389116315,1759582269182,-435.065684,0.00020273,2]
[389116317,1759582269191,-1881.62,0.00020273,2]
[389116319,1759582269200,-804.82,0.00020273,2]
[389116321,1759582269210,-500.0,0.00020273,2]
[389116323,1759582269219,-5135.51,0.00020273,2]
[389116325,1759582269229,-500.0,0.00020273,2]
[389116327,1759582269239,-435.065684,0.00020273,2]
[389116329,1759582269248,-944.8,0.00020273,2]
[389116331,1759582269258,-500.0,0.00020273,2]
[389116333,1759582269266,-151.0,0.00020273,2]
[389116335,1759582269275,-151.0,0.00020273,2]
[389116337,1759582269284,-151.0,0.00020273,2]
[389116339,1759582269293,-151.0,0.00020273,2]
[389116341,1759582269303,-151.0,0.00020273,2]
[389116343,1759582269312,-1075.58,0.00020273,2]
[389116345,1759582269321,-151.0,0.00020273,2]
[389116347,1759582269329,-465.806335,0.00020273,2]
[389116349,1759582269339,-2716.88,0.00020273,2]
[389116351,1759582269348,-465.806335,0.00020273,2]
[389116354,1759582269358,-500.0,0.00020273,2]
[389116355,1759582269367,-465.806335,0.00020273,2]
[389116357,1759582269376,-1462.49,0.00020273,2]
[389116359,1759582269386,-465.806329,0.00020273,2]
[389116362,1759582269395,-786.08,0.00020273,2]
[389116364,1759582269404,-151.0,0.00020273,2]
[389116366,1759582269415,-407.286452,0.00020273,2]
[389116367,1759582269423,-151.0,0.00020273,2]
[389116370,1759582269434,-407.286452,0.00020273,2]
[389116372,1759582269443,-151.0,0.00020273,2]
[389116374,1759582269452,-407.286452,0.00020273,2]
[389116375,1759582269462,-500.0,0.00020273,2]
[389116377,1759582269472,-407.286442,0.00020273,2]
[389116379,1759582269481,-500.0,0.00020273,2]
[389116382,1759582269491,-151.0,0.00020273,2]
[389116383,1759582269500,-500.0,0.00020273,2]
[389116385,1759582269509,-511.28,0.00020273,2]
[389116388,1759582269519,-151.0,0.00020273,2]
[389116389,1759582269528,-500.0,0.00020273,2]
[389116392,1759582269537,-1047.68,0.00020273,2]
[389116394,1759582269547,-1301.49,0.00020273,2]
[389116395,1759582269556,-500.0,0.00020273,2]
[389116397,1759582269565,-841.67,0.00020273,2]
[389116399,1759582269574,-500.0,0.00020273,2]
[389116401,1759582269584,-970.1,0.00020273,2]
[389116404,1759582269593,-500.0,0.00020273,2]
[389116405,1759582269602,-531.12,0.00020273,2]
[389116407,1759582269612,-2278.95,0.00020273,2]
[389116409,1759582269621,-3686.13,0.00020273,2]
[389116411,1759582269631,-500.0,0.00020273,2]
[389116413,1759582269641,-500.0,0.00020273,2]
[389116415,1759582269650,-585.68,0.00020273,2]
[389116417,1759582269659,-312.228017,0.00020273,2]
[389116419,1759582269669,-312.228017,0.00020273,2]
[389116421,1759582269678,-2796.07,0.00020273,2]
[389116424,1759582269689,-312.228017,0.00020273,2]
[389116426,1759582269698,-1336.609448,0.00020273,2]
[389116428,1759582269709,-312.22802,0.00020273,2]
[389116429,1759582269721,-1219.25,0.00020273,2]
[389116431,1759582269730,-1336.609448,0.00020273,2]
[389116434,1759582269740,-500.0,0.00020273,2]
[389116436,1759582269749,-1336.609448,0.00020273,2]
[389116438,1759582269758,-500.0,0.00020273,2]
[389116440,1759582269767,-1830.54,0.00020273,2]
[389116442,1759582269776,-1336.609444,0.00020273,2]
[389116444,1759582269787,-500.0,0.00020273,2]
[389116446,1759582269797,-500.0,0.00020273,2]
[389116447,1759582269806,-500.0,0.00020273,2]
[389116449,1759582269815,-500.0,0.00020273,2]
[389116451,1759582269824,-151.0,0.00020273,2]
[389116454,1759582269833,-4461.67,0.00020273,2]
[389116456,1759582269842,-500.0,0.00020273,2]
[389116457,1759582269851,-500.0,0.00020273,2]
[389116459,1759582269860,-622.76,0.00020273,2]
[389116461,1759582269869,-1711.92,0.00020273,2]
[389116464,1759582269878,-759.509332,0.00020273,2]
[389116466,1759582269887,-1288.58,0.00020273,2]
[389116467,1759582269897,-759.509332,0.00020273,2]
[389116469,1759582269907,-151.0,0.00020273,2]
[389116471,1759582269916,-223.853656,0.00020273,2]
[389116473,1759582269925,-759.509332,0.00020273,2]
[389116475,1759582269934,-151.0,0.00020273,2]
[389116477,1759582269944,-898.81,0.00020273,2]
[389116479,1759582269953,-500.0,0.00020273,2]
[389116481,1759582269963,-228.05,0.00020274,2]
[389116484,1759582269974,-151.0,0.0002029,2]
[389116485,1759582269985,-151.0,0.0002029,2]
[389116487,1759582269994,-151.0,0.0002029,2]
[389116489,1759582270004,-151.0,0.0002029,2]
[389116491,1759582270014,-151.0,0.0002029,2]
[389116493,1759582270025,-151.0,0.0002029,2]
[389116495,1759582270034,-151.0,0.0002029,2]
[389116497,1759582270044,-191.50691826,0.00020309,2]
[389116499,1759582270053,-765.26164538,0.00020309,2]
[389116501,1759582270062,-500.0,0.00020309,2]
[389116504,1759582270071,-151.0,0.00020309,2]
[389116506,1759582270081,-264.37696693,0.00020309,2]
[389116508,1759582270092,-186.73581738,0.00020309,2]
[389116510,1759582270101,-151.0,0.00020309,2]
[389116511,1759582270111,-151.0,0.00020309,2]
[389116514,1759582270120,-151.0,0.00020309,2]
[389116516,1759582270130,-151.0,0.00020309,2]
[389116517,1759582270140,-151.0,0.00020309,2]
[389116520,1759582270149,-151.0,0.00020309,2]
[389116522,1759582270158,-151.0,0.00020309,2]
[389116524,1759582270167,-151.0,0.00020309,2]
[389116525,1759582270177,-703.69196575,0.00020309,2]
[389116527,1759582270187,-151.0,0.00020309,2]
[389116529,1759582270196,-207.688033,0.00020309,2]
[389116532,1759582270206,-151.0,0.00020309,2]
[389116534,1759582270214,-153.415777,0.00020309,2]
[389116536,1759582270224,-234.648409,0.00020309,2]
[389116538,1759582270233,-151.0,0.00020309,2]
[389116540,1759582270241,-185.971397,0.00020309,2]
[389116542,1759582270250,-185.971397,0.00020309,2]
[389116543,1759582270259,-185.971397,0.00020309,2]
[389116545,1759582270268,-185.971397,0.00020309,2]
[389116547,1759582270278,-151.0,0.00020309,2]
[389116549,1759582270287,-151.0,0.00020309,2]
[389116551,1759582270296,-151.0,0.00020309,2]
[389116553,1759582270307,-271.261225,0.00020309,2]
[389116555,1759582270316,-271.261225,0.00020309,2]
[389116557,1759582270325,-271.261225,0.00020309,2]
[389116559,1759582270336,-271.261225,0.00020309,2]
[389116562,1759582270346,-500.0,0.00020309,2]
[389116564,1759582270355,-151.0,0.00020309,2]
[389116566,1759582270364,-151.0,0.00020309,2]
[389116567,1759582270373,-156.029454,0.00020309,2]
[389116569,1759582270382,-151.0,0.00020309,2]
[389116571,1759582270391,-151.0,0.00020309,2]
[389116573,1759582270400,-500.0,0.00020309,2]
[389116575,1759582270409,-151.0,0.00020309,2]
[389116577,1759582270419,-151.0,0.00020309,2]
[389116580,1759582270428,-500.0,0.00020309,2]
[389116581,1759582270437,-151.0,0.00020309,2]
[389116583,1759582270446,-151.0,0.00020309,2]
[389116585,1759582270455,-500.0,0.00020309,2]
[389116587,1759582270464,-500.0,0.00020309,2]
[389116590,1759582270473,-746.19632627,0.00020309,2]
[389116592,1759582270482,-832.98990645,0.00020309,2]
[389116594,1759582270492,-151.0,0.00020309,2]
[389116596,1759582270501,-151.62483946,0.00020309,2]
[389116598,1759582270511,-151.0,0.00020309,2]
[389116600,1759582270520,-2811.95309512,0.00020309,2]
[389116601,1759582270529,-500.0,0.00020309,2]
[389116604,1759582270538,-151.0,0.00020309,2]
[389116606,1759582270547,-151.0,0.00020309,2]
[389116608,1759582270556,-151.0,0.00020309,2]
[389116610,1759582270566,-500.0,0.00020309,2]
[389116612,1759582270575,-500.0,0.00020309,2]
[389116614,1759582270584,-151.0,0.00020309,2]
[389116616,1759582270595,-151.0,0.00020309,2]
[389116618,1759582270607,-500.0,0.00020309,2]
[389116620,1759582270620,-151.0,0.00020309,2]
[389116622,1759582270629,-1395.0,0.00020309,2]
[389116624,1759582270638,-500.0,0.00020309,2]
[389116626,1759582270648,-500.0,0.00020309,2]
[389116628,1759582270658,-500.0,0.00020309,2]
[389116630,1759582270667,-500.0,0.00020309,2]
[389116632,1759582270677,-500.0,0.00020309,2]
[389116634,1759582270686,-500.0,0.00020309,2]
[389116636,1759582270696,-500.0,0.00020309,2]
[389116638,1759582270706,-230.93081101,0.00020309,2]
[389116640,1759582270720,-151.0,0.00020309,2]
[389116642,1759582270729,-151.6053787,0.00020309,2]
[389116644,1759582270740,-151.0,0.00020309,2]
[389116646,1759582270751,-3328.62766617,0.00020309,2]
[389116648,1759582270760,-500.0,0.00020309,2]
[389116650,1759582270769,-151.0,0.00020309,2]
[389116652,1759582270778,-151.63981765,0.00020309,2]
[389116654,1759582270789,-151.0,0.00020309,2]
[389116656,1759582270798,-500.0,0.00020309,2]
[389116658,1759582270808,-500.0,0.00020309,2]
[389116660,1759582270818,-168.0,0.00020326,2]
[389116662,1759582270827,-168.0,0.00020337,2]
[389116664,1759582270836,-168.0,0.0002036,2]
[389116666,1759582270845,-153.2787178,0.00020392,5]
[389116668,1759582270855,-160.0,0.00020442,2]
[389116670,1759582270864,-376.84734022,0.00020485,2]
[389116672,1759582270874,-500.0,0.0002051,2]
[389116674,1759582270886,-494.0,0.00020512,2]
[389116676,1759582270896,-1000.0,0.00020521,2]
[389116678,1759582270905,-1000.0,0.00020521,2]
[389116680,1759582270914,-1000.0,0.00020521,2]
[389116682,1759582270923,-173.2076754,0.00020521,2]
[389116684,1759582270932,-1000.0,0.00020521,2]
[389116686,1759582270941,-168.0,0.00020547,2]
[389116688,1759582270950,-500.0,0.00020547,2]
[389116690,1759582270960,-1129.15,0.00020547,2]
[389116692,1759582270969,-500.0,0.00020547,2]
[389116694,1759582270979,-500.0,0.00020547,2]
[389116696,1759582270988,-500.0,0.00020547,2]
[389116698,1759582270997,-500.0,0.00020547,2]
[389116700,1759582271006,-500.0,0.00020547,2]
[389116702,1759582271015,-500.0,0.00020547,2]
[389116704,1759582271024,-500.0,0.00020547,2]
[389116706,1759582271034,-500.0,0.00020547,2]
[389116708,1759582271043,-500.0,0.00020547,2]
[389116710,1759582271052,-635.33,0.00020547,2]
[389116712,1759582271063,-552.57,0.00020547,2]
[389116714,1759582271072,-734.82,0.00020547,2]
[389116716,1759582271083,-500.0,0.00020547,2]
[389116718,1759582271092,-500.0,0.00020547,2]
[389116720,1759582271101,-563.89,0.00020547,2]
[389116722,1759582271110,-693.1,0.00020547,2]
[389116724,1759582271119,-500.0,0.00020547,2]
[389116726,1759582271129,-553.96,0.00020547,2]
[389116728,1759582271140,-667.64,0.00020547,2]
[389116730,1759582271154,-500.0,0.00020547,2]
[389116732,1759582271163,-500.0,0.00020547,2]
[389116734,1759582271173,-927.47,0.00020547,2]
[389116736,1759582271182,-500.0,0.00020547,2]
[389116738,1759582271192,-500.0,0.00020547,2]
[389116740,1759582271201,-882.4,0.00020547,2]
[389116742,1759582271211,-500.0,0.00020547,2]
[389116744,1759582271220,-500.0,0.00020547,2]
[389116746,1759582271229,-500.0,0.00020547,2]
[389116748,1759582271240,-500.0,0.00020547,2]
[389116750,1759582271249,-899.57,0.00020547,2]
[389116752,1759582271259,-634.21599262,0.00020547,2]
[389116754,1759582271269,-500.0,0.00020547,2]
[389116756,1759582271279,-151.0,0.00020547,2]
[389116757,1759582271288,-193.441215,0.00020547,2]
[389116759,1759582271297,-500.0,0.00020547,2]
[389116761,1759582271307,-2623.04,0.00020547,2]
[389116764,1759582271317,-151.0,0.00020547,2]
[389116765,1759582271327,-500.0,0.00020547,2]
[389116783,1759582271488,-151.0,0.00020547,2]
[389116785,1759582271497,-151.0,0.00020547,2]
[389116787,1759582271507,-500.0,0.00020547,2]
[389116789,1759582271516,-640.83,0.00020547,2]
[389116791,1759582271525,-500.0,0.00020547,2]
[389116793,1759582271535,-151.0,0.00020547,2]
[389116795,1759582271544,-1310.74,0.00020547,2]
[389116797,1759582271555,-749.84,0.00020547,2]
[389116799,1759582271566,-500.0,0.00020547,2]
[389116801,1759582271575,-2382.25,0.00020547,2]
[389116803,1759582271584,-500.0,0.00020547,2]
[389116805,1759582271594,-1283.05,0.00020547,2]
[389116807,1759582271603,-707.87,0.00020547,2]
[389116809,1759582271612,-500.0,0.00020547,2]
[389116811,1759582271621,-500.0,0.00020547,2]
[389116813,1759582271631,-876.9,0.00020547,2]
[389116815,1759582271641,-904.32,0.00020547,2]
[389116817,1759582271650,-500.0,0.00020547,2]
[389116818,1759582271659,-500.0,0.00020547,2]
[389116820,1759582271669,-500.0,0.00020547,2]
[389116823,1759582271678,-542.11,0.00020547,2]
[389116825,1759582271688,-500.0,0.00020547,2]
[389116826,1759582271698,-251.23050368,0.00020547,2]
[389116829,1759582271707,-500.0,0.00020547,2]
[389116831,1759582271722,-1143.82,0.00020547,2]
[389116833,1759582271732,-1168.54,0.00020547,2]
[389116834,1759582271744,-500.0,0.00020547,2]
[389116836,1759582271754,-500.0,0.00020547,2]
[389116838,1759582271763,-500.92,0.00020547,2]
[389116840,1759582271773,-663.79,0.00020547,2]
[389116842,1759582271783,-500.0,0.00020547,2]
[389116844,1759582271794,-2928.1,0.00020547,2]
[389116846,1759582271804,-753.15,0.00020547,2]
[389116848,1759582271813,-1528.06,0.00020547,2]
[389116850,1759582271822,-500.0,0.00020547,2]
[389116852,1759582271832,-1221.58,0.00020547,2]
[389116854,1759582271841,-500.0,0.00020547,2]
[389116856,1759582271850,-520.37,0.00020547,2]
[389116858,1759582271860,-562.82,0.00020547,2]
[389116860,1759582271869,-500.0,0.00020547,2]
[389116862,1759582271878,-151.0,0.00020547,2]
[389116864,1759582271887,-500.0,0.00020547,2]
[389116866,1759582271898,-586.62,0.00020547,2]
[389116868,1759582271907,-1226.46,0.00020547,2]
[389116870,1759582271916,-500.0,0.00020547,2]
[389116872,1759582271925,-500.0,0.00020547,2]
[389116874,1759582271935,-758.10456,0.00020547,2]
[389116876,1759582271945,-758.10456,0.00020547,2]
[389116878,1759582271954,-758.10456,0.00020547,2]
[389116880,1759582271964,-758.10456,0.00020547,2]
[389116882,1759582271974,-500.0,0.00020547,2]
[389116883,1759582271983,-1546.54,0.00020547,2]
[389116885,1759582271992,-500.0,0.00020547,2]
[389116887,1759582272001,-640.45,0.00020547,2]
[389116889,1759582272010,-500.0,0.00020547,2]
[389116891,1759582272020,-514.22,0.00020547,2]
[389116893,1759582272028,-500.0,0.00020547,2]
[389116895,1759582272038,-577.75,0.00020547,2]
[389116897,1759582272048,-165.579866,0.00020547,2]
[389116899,1759582272057,-236.501964,0.00020547,2]
[389116901,1759582272066,-165.579866,0.00020547,2]
[389116903,1759582272075,-621.59,0.00020547,2]
[389116905,1759582272084,-236.501964,0.00020547,2]
[389116907,1759582272093,-165.579866,0.00020547,2]
[389116909,1759582272103,-236.501964,0.00020547,2]
[389116911,1759582272112,-165.579866,0.00020547,2]
[389116913,1759582272122,-236.501964,0.00020547,2]
[389116915,1759582272131,-878.25,0.00020547,2]
[389116917,1759582272140,-500.0,0.00020547,2]
[389116919,1759582272149,-532.16,0.00020547,2]
[389116921,1759582272158,-500.0,0.00020547,2]
[389116923,1759582272168,-500.0,0.00020547,2]
[389116925,1759582272177,-151.0,0.00020547,2]
[389116927,1759582272187,-151.0,0.00020547,2]
[389116929,1759582272196,-500.0,0.00020547,2]
[389116931,1759582272205,-500.0,0.00020547,2]
[389116933,1759582272216,-500.0,0.00020547,2]
[389116935,1759582272225,-500.0,0.00020547,2]
[389116937,1759582272235,-500.0,0.00020547,2]
[389116939,1759582272244,-151.0,0.00020547,2]
[389116941,1759582272254,-500.0,0.00020547,2]
[389116943,1759582272263,-500.0,0.00020547,2]
[389116945,1759582272272,-458.1176446,0.00020547,2]
[389116947,1759582272282,-151.0,0.00020547,2]
[389116949,1759582272291,-500.0,0.00020547,2]
[389116951,1759582272300,-500.0,0.00020547,2]
[389116953,1759582272310,-500.0,0.00020547,2]
[389116956,1759582272320,-2202.03,0.00020547,2]
[389116958,1759582272330,-518.58,0.00020547,2]
[389116960,1759582272339,-1787.61,0.00020547,2]
[389116961,1759582272348,-500.0,0.00020547,2]
[389116963,1759582272357,-636.3,0.00020547,2]
[389116965,1759582272367,-151.0,0.00020547,2]
[389116968,1759582272376,-151.0,0.00020547,2]
[389116969,1759582272386,-657.33,0.00020547,2]
[389116971,1759582272395,-500.0,0.00020547,2]
[389116973,1759582272404,-251.795406,0.00020547,2]
[389116975,1759582272413,-359.63718803,0.00020547,2]
[389116977,1759582272422,-500.0,0.00020547,2]
[389116979,1759582272432,-500.0,0.00020547,2]
[389116982,1759582272448,-793.93,0.00020547,2]
[389116984,1759582272459,-500.0,0.00020547,2]
[389116986,1759582272470,-2432.08,0.00020547,2]
[389116988,1759582272480,-500.0,0.00020547,2]